[Event "Croatian Team Cup Final 2022"]
[Site "Vodice"]
[Date "2022.05.18"]
[Round "1.10"]
[White "Cvitan, Ognjen"]
[Black "Markovic, Franjo-Josip"]
[Result "1-0"]
[ECO "D87"]
[WhiteElo "2454"]
[BlackElo "2144"]
[Annotator "TA"]
[PlyCount "85"]
[EventDate "2022.05.18"]
[EventType "team-tourn"]
[EventCountry "CRO"]
[SourceTitle "playchess.com"]
[Source "ChessBase"]
[SourceQuality "1"]
[TimeControl "40/5400+30:1800+30"]

{[%evp 22,85,20,19,16,0,13,0,0,0,25,26,43,12,21,0,33,14,93,0,22,15,121,123,167,167,167,167,167,167,169,175,174,166,176,166,172,168,167,166,165,143,242,149,407,357,620,606,635,564,681,689,681,644,856,820,1116,1053,1066,1004,1082,1068,1031,1017,948,916]} 1. d4 {[%emt 0:00:38]} Nf6 {[%emt 0:00:16]} 2. c4 {[%emt 0:01:05]} g6 {[%emt 0:00:12]} 3. Nc3 {[%emt 0:01:48]} d5 {[%emt 0:00:11]} 4. cxd5 {[%emt 0:00:59]} Nxd5 {[%emt 0:00:11]} 5. e4 {[%emt 0:00:35]} Nxc3 {[%emt 0:00:10]} 6. bxc3 {[%emt 0:00:04]} Bg7 {[%emt 0:00:08]} 7. Bc4 {[%emt 0:00:13]} c5 {[%emt 0:00:12]} 8. Ne2 {[%emt 0:00:11]} Nc6 {[%emt 0:00:29]} 9. Be3 {[%emt 0:00:12]} O-O {[%emt 0:00:40]} 10. O-O {[%emt 0:01:48]} Qc7 {[%emt 0:02:20]} 11. Rc1 {[%emt 0:03:55]} b6 {[%emt 0:01:12]} 12. Qd2 {[%emt 0:10:03] 12.h4 gains popularity.} Bb7 {[%emt 0:00:59] D87: Exchange Grünfeld: Classical Line: Variations without ...cxd4.} 13. Bh6 {[%emt 0:02:01]} Rad8 {[%emt 0:02:21]} 14. Bxg7 {[%emt 0:01:15]} Kxg7 {[%emt 0:00:08] The position is equal.} 15. Qe3 {[%emt 0:00:31]} e5 {[%emt 0:10:18][%cal Re5d4]} 16. Bb5 {[%emt 0:02:07]} Na5 {[%emt 0:06:24]} ({Weaker is} 16... cxd4 17. cxd4 exd4 18. Nxd4 $1 {[%mdl 512]} Rxd4 19. Qxd4+ Nxd4 20. Rxc7 $18) 17. Ng3 {[%emt 0:02:40]} Qe7 {[%emt 0:03:37][%cal Re5d4] [#]} 18. Rfd1 $146 {[%emt 0:05:11]} ({Predecessor:} 18. dxe5 Qxe5 19. f4 Qd6 20. Rfd1 Qxd1+ 21. Rxd1 Rxd1+ 22. Kf2 Nc6 23. Bxc6 Bxc6 24. f5 {½-½ (30) Renet,O (2498)-Vachier Lagrave,M (2595) Aix les Bains 2007}) 18... a6 {[%emt 0:10:41]} 19. Be2 {[%emt 0:01:22]} Rfe8 {[%emt 0:04:44]} (19... exd4 $11 {keeps the balance.} 20. cxd4 cxd4 21. Rxd4 b5) 20. f3 {[%emt 0:03:04]} (20. d5 $16) 20... b5 {[%emt 0:08:54]} 21. d5 {[%emt 0:05:37] c4 is the strong threat.} Bc8 {[%emt 0:03:54]} (21... c4 $1 $11) 22. c4 $16 {[%emt 0:01:15]} b4 {[%emt 0:01:56] [#]} 23. a3 $1 {[%emt 0:02:53]} b3 {[%emt 0:00:52]} 24. Nf1 {[%emt 0:00:45]} Qc7 {[%emt 0:03:39]} 25. Nd2 {[%emt 0:01:40]} Bd7 {[%emt 0:02:04]} 26. Rb1 {[%emt 0:04:13]} Ba4 {[%emt 0:01:24]} 27. Rb2 {[%emt 0:00:15]} Rb8 {[%emt 0:05:25]} 28. Rdb1 {[%emt 0:00:09]} Rb7 {[%emt 0:05:54]} 29. Bd1 {[%emt 0:00:22]} Reb8 {[%emt 0:03:51]} 30. Qc3 {[%emt 0:00:13]} ({Not} 30. Bxb3 $2 Bxb3 31. h4 Ba4 $19) 30... f6 {[%emt 0:00:11]} 31. h3 {[%emt 0:01:20]} Qb6 {[%emt 0:04:46]} (31... g5 $16 32. Bxb3 (32. Nxb3 Bxb3 33. Bxb3 h5 $16) 32... Bd7) 32. Kh2 {[%emt 0:00:41] Hoping for Bxb3.} h5 $2 {[%emt 0:00:46][%mdl 8192] [#] Black cannot hold the game after this.} (32... Qc7 $16 33. Bxb3 (33. Nxb3 Bxb3 34. Bxb3 h5 $16) 33... Bd7) 33. Bxb3 $1 $18 {[%emt 0:00:54]} Bd7 {[%emt 0:13:36] [#]} (33... Bxb3 34. Nxb3 Nxb3) 34. Ba4 $1 {[%emt 0:02:19][%mdl 512] White is clearly winning.} Qc7 {[%emt 0:02:04]} (34... Qd8 35. Bxd7) 35. Bxd7 {[%emt 0:00:27]} Qxd7 {[%emt 0:02:16]} 36. Rxb7 {[%emt 0:00:58]} Nxb7 {[%emt 0:00:08]} 37. Qb3 {[%emt 0:00:36]} g5 {[%emt 0:01:31]} 38. Nf1 {[%emt 0:01:06][%cal Bd2f1,Bf1g3,Bg3f5,Bf5e7][%mdl 32]} g4 {[%emt 0:00:21]} 39. fxg4 {[%emt 0:00:46]} hxg4 {[%emt 0:00:07]} 40. Ng3 {[%emt 0:00:00]} Kg6 {[%emt 0:00:00]} 41. Nf5 {[%emt 0:00:55] White wants to mate with Qg3.} Qh7 {[%emt 0:05:12]} 42. Qg3 {[%emt 0:01:23]} Qh5 {[%emt 0:01:18]} 43. Ne7+ {[%emt 0:00:38] Weighted Error Value: White=0.15 (very precise) /Black=0.48} 1-0

[Event "Croatian Team Cup Final 2022"]
[Site "Vodice"]
[Date "2022.05.18"]
[Round "1.11"]
[White "Keetman, Maaike"]
[Black "Rogic, Davor"]
[Result "0-1"]
[ECO "C78"]
[WhiteElo "2160"]
[BlackElo "2457"]
[Annotator "TA"]
[PlyCount "66"]
[EventDate "2022.05.18"]
[EventType "team-tourn"]
[EventCountry "CRO"]
[SourceTitle "playchess.com"]
[Source "ChessBase"]
[SourceQuality "1"]
[TimeControl "40/5400+30:1800+30"]

{[%evp 13,66,2,17,17,6,19,31,43,35,44,54,55,52,53,225,219,420,208,207,73,101,0,0,0,-15,-96,-120,-158,-123,-440,-405,-395,-340,-340,-340,-340,-340,-335,-326,-322,0,-452,-450,-466,-451,-824,-777,-931,-842,-999,-1017,-2963,-2658,-3025,-2689]} 1. e4 {[%emt 0:00:03]} e5 {[%emt 0:00:31]} 2. Nf3 {[%emt 0:00:10]} Nc6 {[%emt 0:00:21]} 3. Bb5 {[%emt 0:00:14]} a6 {[%emt 0:00:23]} 4. Ba4 {[%emt 0:00:05]} Nf6 {[%emt 0:00:25]} 5. d3 {[%emt 0:00:17]} Bc5 {[%emt 0:00:28]} 6. c3 {[%emt 0:01:53]} d6 {[%emt 0:00:45]} 7. O-O {[%emt 0:01:11]} O-O {[%emt 0:00:53]} 8. Bg5 {[%emt 0:02:49] C78: Ruy Lopez: Archangelsk and Möller Defences.} Ba7 {[%emt 0:05:59]} 9. Nbd2 {[%emt 0:06:14]} Ne7 {[%emt 0:01:07]} 10. Bxf6 {[%emt 0:26:15] White is slightly better.} gxf6 {[%emt 0:00:06]} 11. Nh4 {[%emt 0:00:05] [#]} f5 $146 {[%emt 0:22:23]} ({Predecessor:} 11... Ng6 12. Nf5 Bxf5 13. exf5 Ne7 14. Ne4 Kh8 15. Qh5 Qc8 16. g4 Rg8 17. Kh1 Nd5 18. Qxf7 Rxg4 19. Qxd5 Qxf5 20. Ng3 {1-0 (20) Nisipeanu,L (2661)-Bromberger,S (2492) Bad Wiessee 2012}) 12. Qh5 {[%emt 0:02:55][%cal Re4f5]} fxe4 {[%emt 0:02:27]} 13. Nxe4 {[%emt 0:13:18]} f6 {[%emt 0:00:38] Against Ng5} (13... Kg7 $1 $14) 14. d4 $1 $18 {[%emt 0:07:22]} exd4 {[%emt 0:14:17]} (14... Kg7 {was called for.} 15. Ng3 Be6) 15. Rad1 {[%emt 0:04:07]} (15. Bc2 $142 {[%cal Oe4g5] White wants to mate with Ng5!} Rf7 16. Rad1 (16. Bb3 d5 $14)) 15... d5 {[%emt 0:04:39]} 16. Ng3 {[%emt 0:11:59]} ({Weaker is} 16. Bb3 c5 17. Nd2 Qe8 $11) (16. Rfe1 $1 $18 {and White stays clearly on top.}) 16... dxc3 $16 {[%emt 0:02:27]} 17. Rfe1 {[%emt 0:06:32]} ({But not} 17. Bc2 $6 Rf7 $11) ({White should try} 17. bxc3 $16 {Threatens to win with Rfe1.} c6 18. Bc2) 17... cxb2 $11 {[%emt 0:01:28]} 18. Bc2 {[%emt 0:08:05][%csl Gc2][%cal Rh5h7]} Rf7 {[%emt 0:00:43]} 19. Ne4 {[%emt 0:01:59] [#]} (19. Rb1 $11) 19... Be6 $1 $17 {[%emt 0:06:34]} (19... h6 $2 20. Qxh6 Bxf2+ 21. Nxf2 $18) 20. Rd3 {[%emt 0:04:01]} dxe4 {[%emt 0:02:39]} 21. Rxe4 {[%emt 0:00:23][%mdl 8192] [#]} (21. Rxd8+ $17 {was the crucial defense.} Rxd8 22. Bxe4) 21... Bxa2 $1 {[%emt 0:05:46]} 22. Rg4+ {[%emt 0:00:35]} (22. Rxd8+ Rxd8) 22... Kh8 {[%emt 0:00:20] aiming for ...Qe8.} 23. Rxd8+ {[%emt 0:00:36]} Rxd8 {[%emt 0:00:05] Dancing on a razor blade.} 24. h3 {[%emt 0:00:44] [#]} Bxf2+ $1 {[%emt 0:07:43][%mdl 512]} 25. Kh2 {[%emt 0:00:24]} Bd4 {[%emt 0:06:13] Strongly threatening ...Be5+.} 26. Nf3 {[%emt 0:00:28] [#] Prevents Be5+.} Be3 {[%emt 0:06:32]} (26... Bc3 $1 $19 27. Ra4 Bd5) 27. Rh4 $2 {[%emt 0:00:30][%mdl 8192]} (27. Ne5 $11 Rg7 28. Rxg7 Kxg7 29. Qxh7+ Kf8 30. Qh8+ Ng8 31. Ng6+ Ke8 32. Qh4) 27... f5 $19 {[%emt 0:01:10] ...Rg7 is the strong threat. Black is clearly winning.} 28. Rb4 {[%emt 0:00:35]} Bc1 {[%emt 0:01:32]} 29. Ng5 {[%emt 0:00:36]} (29. Rd4 $142 Rxd4 30. Nxd4) 29... Rg7 {[%emt 0:00:18]} 30. h4 {[%emt 0:00:25]} b5 {[%emt 0:01:06] And now ...c5 would win.} 31. Qe2 {[%emt 0:00:35]} Rd2 {[%emt 0:00:45]} 32. Qf3 {[%emt 0:00:32]} Rxc2 {[%emt 0:00:23]} 33. Qa8+ {[%emt 0:00:03]} Ng8 {[%emt 0:01:02] Never resign too early!  Weighted Error Value: White=1.11/Black=0.26 (precise)} 0-1

[Event "Croatian Team Cup Final 2022"]
[Site "Vodice"]
[Date "2022.05.18"]
[Round "1.12"]
[White "Armanda, Ivica"]
[Black "Ivekovic, Tihana"]
[Result "0-1"]
[ECO "C19"]
[WhiteElo "2236"]
[BlackElo "2083"]
[Annotator "TA"]
[PlyCount "96"]
[EventDate "2022.05.18"]
[EventType "team-tourn"]
[EventCountry "CRO"]
[SourceTitle "playchess.com"]
[Source "ChessBase"]
[SourceQuality "1"]
[TimeControl "40/5400+30:1800+30"]

{[%evp 21,96,13,21,0,0,-21,-26,-38,-25,-29,-28,-41,-36,-41,0,-9,0,0,0,0,0,0,0,0,0,0,25,0,0,0,19,-23,0,0,0,0,0,0,0,0,0,0,0,0,0,0,52,0,0,-856,-823,-1186,-1186,-1367,-1355,-1291,-1300,-1216,-1173,-1553,-1520,-1444,-1204,-1847,-1856,-759,-1954,-1989,-1929,-2438,-2039,-29985,-29986,-29986,-12838,-29989,-29990]} 1. e4 {[%emt 0:00:09]} e6 {[%emt 0:00:04]} 2. d4 {[%emt 0:00:21]} d5 {[%emt 0:00:04]} 3. Nc3 {[%emt 0:00:28]} Bb4 {[%emt 0:00:07]} 4. e5 {[%emt 0:02:56]} c5 {[%emt 0:00:05]} 5. a3 {[%emt 0:00:07]} Bxc3+ {[%emt 0:00:05]} 6. bxc3 {[%emt 0:00:05]} Ne7 {[%emt 0:00:06]} 7. Nf3 {[%emt 0:00:23]} Qa5 {[%emt 0:01:15]} 8. Bd2 {[%emt 0:01:50]} Qa4 {[%emt 0:02:48]} 9. Bd3 {[%emt 0:03:49]} c4 {[%emt 0:02:12]} 10. Be2 {[%emt 0:07:23]} Nbc6 {[%emt 0:00:09]} 11. O-O {[%emt 0:06:10]} Bd7 {[%emt 0:00:16]} 12. Bg5 {[%emt 0:04:06] C19: French: 3 Nc3 Bb4: Main line: 7 Nf3 and 7 a4.} O-O-O {[%emt 0:04:14]} 13. Qd2 {[%emt 0:08:02]} h6 {[%emt 0:06:03]} 14. Bxe7 {[%emt 0:01:59] Black has an edge.} Nxe7 {[%emt 0:00:04]} 15. Rfb1 {[%emt 0:02:10]} Nc6 {[%emt 0:04:11] [#]} 16. h4 $146 {[%emt 0:02:11]} ({Predecessor:} 16. Qc1 Kb8 17. Qb2 Bc8 18. Nd2 Ka8 19. Nb3 cxb3 20. cxb3 Qa5 21. a4 Bd7 22. b4 {0-1 (51) Subramaniam,S (2117)-Iskandar,B (1956) Kuala Lumpur 2011}) 16... Rdf8 {[%emt 0:04:24]} 17. h5 {[%emt 0:02:48]} g6 {[%emt 0:04:04]} 18. Nh2 {[%emt 0:02:50]} gxh5 {[%emt 0:07:34]} 19. Bxh5 {[%emt 0:02:49]} f5 {[%emt 0:00:22] Prevents Ng4.} 20. exf6 $1 {[%emt 0:02:00]} Rxf6 {[%emt 0:00:06]} 21. Re1 {[%emt 0:01:43]} Rf5 {[%emt 0:14:19]} 22. Bg4 {[%emt 0:03:22]} Rf6 {[%emt 0:00:12]} 23. Bh3 {[%emt 0:05:26]} h5 {[%emt 0:03:19]} 24. Re2 {[%emt 0:03:42]} Rg8 {[%emt 0:11:43]} 25. Kh1 {[%emt 0:01:51]} Ne7 {[%emt 0:02:03]} 26. Rae1 {[%emt 0:19:02][%cal Rh3e6]} Qxa3 {[%emt 0:09:23]} (26... Nf5 {with more complications.} 27. Nf3 Qxa3 28. Ne5 Qe7) 27. Bxe6 {[%emt 0:01:08]} Bxe6 {[%emt 0:00:42]} 28. Rxe6 {[%emt 0:00:12]} Rxe6 {[%emt 0:00:05]} 29. Rxe6 {[%emt 0:00:06]} Nc6 {[%emt 0:00:17]} 30. Nf3 {[%emt 0:00:33]} Qf8 $1 {[%emt 0:01:31]} 31. Qe3 {[%emt 0:05:33]} Qf5 {[%emt 0:02:11]} 32. Nh4 {[%emt 0:09:12]} Qg4 {[%emt 0:06:40]} (32... Qxc2 {[#]} 33. Rxc6+ $1 {[%mdl 512]} bxc6 34. Qe6+ Kb7 35. Qxg8 $16) 33. g3 {[%emt 0:01:20]} Kd7 {[%emt 0:04:07]} (33... Qh3+ $11 34. Kg1 Qxh4 35. Rxc6+ bxc6 36. Qe6+ Kc7 37. Qf7+ Kb6 38. Qxg8 Qe7) 34. Rh6 {[%emt 0:00:47]} (34. Rf6 $1 $14) 34... Re8 $40 {[%emt 0:02:53][%mdl 128] Black attacks. Chess con chili.} 35. Rh7+ $2 {[%emt 0:00:33][%mdl 8192]} (35. Qc1 $11) 35... Kd8 $19 {[%emt 0:00:19]} 36. Qxe8+ {[%emt 0:00:51]} Kxe8 {[%emt 0:00:06]} 37. Rxb7 {[%emt 0:00:12]} Qe4+ {[%emt 0:00:59]} 38. Kg1 {[%emt 0:00:21]} Qxc2 {[%emt 0:00:14]} 39. Rc7 {[%emt 0:00:19]} Ne7 {[%emt 0:00:43]} 40. Nf3 {[%emt 0:00:00]} a5 {[%emt 0:00:00]} 41. Ra7 {[%emt 0:00:36]} Qxc3 {[%emt 0:01:28]} 42. Ne5 {[%emt 0:00:05]} Nf5 {[%emt 0:02:35]} 43. Ra8+ {[%emt 0:00:43]} Ke7 {[%emt 0:00:17]} 44. Ra7+ {[%emt 0:01:01]} Ke6 {[%emt 0:04:17]} 45. Ra6+ {[%emt 0:01:02]} Nd6 {[%emt 0:00:34] [#] And now ...Qa1+ would win.} 46. Nc6 {[%emt 0:00:48]} Qe1+ {[%emt 0:00:31]} 47. Kg2 {[%emt 0:00:06]} c3 {[%emt 0:00:59]} (47... Ne4 $142 48. Ne5+ Kf5 49. g4+ Kf4 50. Ng6+ Kg5 51. f4+ Kxg4 52. Ne5+ Kxf4 53. Rg6 a4 54. Kh2 Qh4+ 55. Kg2 Qf2+ 56. Kh3 Ng5+ 57. Rxg5 Kxg5 58. Ng6 Qf3+ 59. Kh2 Kxg6 60. Kg1 h4 61. Kh2 h3 62. Kg1 Qg2#) 48. Ra7 {[%emt 0:00:16]} Ne4 {[%emt 0:00:37] Weighted Error Value: White=0.74/Black=0.15 (very precise)} 0-1

[Event "Croatian Team Cup Final 2022"]
[Site "Vodice"]
[Date "2022.05.18"]
[Round "1.13"]
[White "Saric, Ante"]
[Black "Lisjak, Zlatko"]
[Result "1-0"]
[ECO "A05"]
[WhiteElo "2510"]
[BlackElo "2229"]
[Annotator "TA"]
[PlyCount "57"]
[EventDate "2022.05.18"]
[EventType "team-tourn"]
[EventCountry "CRO"]
[SourceTitle "playchess.com"]
[Source "ChessBase"]
[SourceQuality "1"]
[TimeControl "40/5400+30:1800+30"]

{[%evp 9,57,7,23,16,26,22,25,28,50,59,50,43,80,53,73,68,75,72,81,94,99,89,198,208,194,185,218,230,220,215,231,237,233,197,195,194,314,286,330,331,577,575,561,552,599,350,604,593,677,674]} 1. Nf3 {[%emt 0:00:15]} Nf6 {[%emt 0:00:58]} 2. g3 {[%emt 0:01:09]} g6 {[%emt 0:02:00]} 3. b3 {[%emt 0:00:28]} Bg7 {[%emt 0:00:50]} 4. Bb2 {[%emt 0:00:06]} O-O {[%emt 0:00:52]} 5. Bg2 {[%emt 0:00:05]} a5 {[%emt 0:01:24]} 6. c4 {[%emt 0:03:19] A05: Réti Opening: 1 Nf3 Nf6.} d6 {[%emt 0:03:50]} 7. d4 {[%emt 0:01:06]} Nbd7 {[%emt 0:01:19][%cal Oe7e5]} 8. O-O {[%emt 0:01:07] White has an edge.} e5 {[%emt 0:02:15]} 9. dxe5 {[%emt 0:00:53]} Ng4 {[%emt 0:00:08]} 10. Nc3 {[%emt 0:01:22]} dxe5 {[%emt 0:00:40][%cal Oe5e4]} 11. h3 {[%emt 0:01:47]} (11. Qd2 {is more complex.} Re8 12. Ng5 Ngf6 13. Rad1) 11... Nh6 {[%emt 0:02:53][%cal Oe5e4] [#]} 12. Qc2 $146 {[%emt 0:05:18] White stays focused until the end.} ({Predecessor:} 12. e4 f5 13. exf5 gxf5 14. Nb5 Ra6 15. Re1 Nf7 16. Nh4 f4 17. Nf5 fxg3 18. fxg3 {1-0 (26) Chernyshov,K (2445)-Korolev,A Decin 1997}) 12... f6 {[%emt 0:04:14]} 13. Rfd1 {[%emt 0:06:15]} Nf7 {[%emt 0:02:27]} 14. c5 {[%emt 0:03:35] White is much more active. The black rooks are badly placed.} f5 {[%emt 0:17:14]} 15. e4 {[%emt 0:09:04]} Ra6 {[%emt 0:14:52]} (15... f4 $16 {was called for.}) 16. exf5 $18 {[%emt 0:05:16]} gxf5 {[%emt 0:00:45]} 17. Nh4 $36 {[%emt 0:03:34][%mdl 2048] White is in control.} ({But not} 17. Qxf5 $6 Nxc5 18. Qc2 (18. Rxd8 Bxf5 19. Rxf8+ Bxf8 $14) 18... Rd6 $16) 17... f4 {[%emt 0:08:34]} 18. Nf5 {[%emt 0:01:05]} fxg3 {[%emt 0:05:50]} 19. fxg3 {[%emt 0:01:18]} Rg6 {[%emt 0:01:55]} 20. Ne4 {[%emt 0:10:24]} Qe8 {[%emt 0:10:12]} 21. Nxg7 {[%emt 0:05:17]} Kxg7 {[%emt 0:00:37]} 22. Qd2 {[%emt 0:02:56]} b6 {[%emt 0:07:07]} (22... a4 {is a better defense.} 23. bxa4 Nf6 24. Nxf6 (24. g4 Qxa4 25. Nxf6 Rxf6 $16) 24... Rxf6) 23. cxb6 {[%emt 0:00:22]} cxb6 {[%emt 0:00:07]} 24. Rac1 {[%emt 0:00:16][%cal Ba1c1,Bc1c7,Bc7b7][%mdl 32]} Nf6 $2 {[%emt 0:02:45]} (24... Nc5 {might work better.}) 25. Nxf6 {[%emt 0:00:25]} Rxf6 {[%emt 0:00:25]} 26. Rc7 {[%emt 0:01:12] Prevents Qe7.} Kg8 {[%emt 0:03:15]} 27. Qe3 {[%emt 0:03:22] [#] aiming for Ba3.} Be6 $2 {[%emt 0:04:32]} (27... b5 28. g4 Be6) 28. Ba3 {[%emt 0:04:10] This bishop pair is nice.} Qb8 {[%emt 0:00:18]} 29. Rb7 {[%emt 0:00:24] Weighted Error Value: White=0.14 (very precise) /Black=0.52} 1-0

[Event "Croatian Team Cup Final 2022"]
[Site "Vodice"]
[Date "2022.05.18"]
[Round "1.14"]
[White "Novak, Ratko"]
[Black "Plenca, Julijan"]
[Result "0-1"]
[ECO "A84"]
[WhiteElo "2111"]
[BlackElo "2443"]
[Annotator "TA"]
[PlyCount "96"]
[EventDate "2022.05.18"]
[EventType "team-tourn"]
[EventCountry "CRO"]
[SourceTitle "playchess.com"]
[Source "ChessBase"]
[SourceQuality "1"]
[TimeControl "40/5400+30:1800+30"]

{[%evp 9,96,-6,-7,-30,5,0,27,14,18,-2,-33,-70,-47,-220,-203,-221,-215,-302,-251,-368,-358,-361,-360,-349,-264,-510,-498,-534,-540,-565,-585,-642,-643,-645,-563,-572,-572,-689,-565,-572,-561,-763,-744,-763,-748,-746,-745,-747,-755,-745,-726,-907,-886,-897,-904,-974,-962,-1455,-1431,-1358,-1341,-1064,-990,-29979,-29980,-29980,-29981,-29979,-29980,-29977,-29975,-29969,-29971,-29977,-29978,-29982,-29983,-29989,-29990,-29990,-29991,-29991,-29991,-29992,-29990,-29990,-29991,-29994,-29995]} 1. d4 {[%emt 0:00:12]} g6 {[%emt 0:00:35]} 2. c4 {[%emt 0:00:06]} f5 {[%emt 0:00:35]} 3. e4 {[%emt 0:01:24]} fxe4 {[%emt 0:00:20]} 4. Nc3 {[%emt 0:00:09]} Nf6 {[%emt 0:00:09]} 5. Bg5 {[%emt 0:00:34]} Bg7 {[%emt 0:00:07]} 6. h4 {[%emt 0:06:16][%cal Oh4h5] [#] A84: Dutch Defence: 2 c4 Miscellaneous.} c6 $146 {[%emt 0:01:09]} ({Predecessor:} 6... h6 7. Be3 d5 8. cxd5 c6 9. dxc6 Nxc6 10. Qd2 Qa5 11. Bb5 Bd7 12. Nge2 Rd8 {0-1 (32) Fos Santacreu,J (2303)-Serrano Felipe,R (2075) La Pobla de Vallbona 2004}) 7. h5 {[%emt 0:01:14]} ({Much weaker is} 7. Bxf6 Bxf6 8. h5 (8. Nxe4 Qa5+ 9. Nc3 c5 $15) 8... d5 $15) 7... Qa5 {[%emt 0:03:00]} 8. Qd2 {[%emt 0:02:18] White has an edge.} Nxh5 {[%emt 0:01:31] [#]} 9. Rxh5 $1 {[%emt 0:00:26]} gxh5 {[%emt 0:00:06]} 10. Be2 {[%emt 0:02:43]} O-O {[%emt 0:01:17][%cal Og7d4]} 11. c5 $2 {[%emt 0:05:48]} (11. Bxe7 $15 Re8 12. Bd6) 11... d5 $19 {[%emt 0:03:10] ...Qc7 is the strong threat.} 12. Bxe7 {[%emt 0:10:57]} Rf5 {[%emt 0:00:47]} 13. Bd6 {[%emt 0:14:37]} (13. f3 {is a better defense.}) 13... Qd8 {[%emt 0:00:40]} 14. Nh3 {[%emt 0:03:51]} (14. f3 $142) 14... Qf6 {[%emt 0:01:00]} 15. g4 {[%emt 0:05:17]} hxg4 {[%emt 0:00:28]} 16. Bxg4 {[%emt 0:00:18]} Qxd4 {[%emt 0:01:28]} 17. Qe2 $2 {[%emt 0:03:53]} (17. Qxd4 {might work better.} Bxd4 18. Ne2) 17... Na6 {[%emt 0:02:32][%cal Oa6c5]} 18. Bxf5 {[%emt 0:06:15]} Bxf5 {[%emt 0:00:08]} 19. Nf4 {[%emt 0:00:23]} Nxc5 {[%emt 0:00:54] Threatens to win with ...Nd3+.} 20. Qh5 {[%emt 0:04:30] [#]} e3 $1 {[%emt 0:01:49] ( -> ...Qd2+)} 21. Rd1 {[%emt 0:06:28] Inhibits Qd2+.} exf2+ {[%emt 0:00:23]} 22. Kf1 {[%emt 0:00:23]} Qc4+ {[%emt 0:00:39]} 23. Kg2 {[%emt 0:01:40]} Be4+ {[%emt 0:00:24]} 24. Kxf2 {[%emt 0:01:26]} Qb4 {[%emt 0:04:01]} ({Inferior is} 24... Bxc3 25. bxc3 Qxc3 26. Nxd5 Qb2+ 27. Ke3 $17) 25. Nce2 {[%emt 0:04:11]} Bg6 {[%emt 0:02:25]} 26. Nxg6 {[%emt 0:03:55]} hxg6 {[%emt 0:00:07]} 27. Qxg6 {[%emt 0:03:00]} Ne4+ {[%emt 0:00:16]} 28. Kg2 {[%emt 0:02:43]} Nxd6 {[%emt 0:00:16]} 29. Qe6+ {[%emt 0:01:40]} Nf7 {[%emt 0:00:09]} 30. Ng3 {[%emt 0:01:08]} Qxb2+ {[%emt 0:00:17]} 31. Kh1 {[%emt 0:00:45]} Qe5 {[%emt 0:00:23]} 32. Qg4 {[%emt 0:01:09]} Qg5 {[%emt 0:00:07]} 33. Qh3 {[%emt 0:01:01]} Re8 {[%emt 0:00:38] aiming for ...Re3.} 34. Nf5 {[%emt 0:00:39] Prevents Re3.} Re5 {[%emt 0:01:17]} 35. Rf1 {[%emt 0:02:16]} Qg6 {[%emt 0:01:48] And now ...c5 would win.} 36. Nxg7 {[%emt 0:02:16]} Kxg7 {[%emt 0:00:26] Black mates.} 37. Rg1 {[%emt 0:00:22]} Rg5 {[%emt 0:00:07]} 38. Rxg5 {[%emt 0:01:09]} Qxg5 {[%emt 0:00:07]} 39. Qd7 {[%emt 0:00:08]} Qh6+ {[%emt 0:00:53]} 40. Kg2 {[%emt 0:00:00]} Qd6 {[%emt 0:00:00]} 41. Qxb7 {[%emt 0:00:50]} d4 {[%emt 0:00:33][%cal Bd5d4,Bd4d3,Bd3d2][%mdl 32]} 42. Qxa7 {[%emt 0:00:21]} d3 {[%emt 0:00:21]} 43. Qa4 {[%emt 0:01:20]} d2 {[%emt 0:00:18]} 44. Qd1 {[%emt 0:00:10]} Qd3 {[%emt 0:02:38]} 45. Kf2 {[%emt 0:00:35]} Ne5 {[%emt 0:00:18]} 46. a4 {[%emt 0:01:11]} Qd4+ {[%emt 0:00:31]} 47. Ke2 {[%emt 0:00:28]} Nc4 {[%emt 0:00:19]} 48. a5 {[%emt 0:00:38]} Qg4+ {[%emt 0:00:27] White did not feel at home in the position after the opening.  Weighted Error Value: White=0.67/Black=0.22 (precise)} 0-1